bitfinex/quotes_SOLUSD_20260113
["timestamp","ask_amount","ask_price","bid_price","bid_amount"]
[1768291748921,0.1,140.33,140.3,13.68384223]
[1768291750551,0.09951779,140.31,140.28,13.02]
[1768291750853,2.08547109,140.32,140.26,13.68384223]
[1768291750854,2.23573822,140.3,140.26,13.68384223]
[1768291751044,2.08547109,140.29,140.26,13.68384223]
[1768291751246,0.15026713,140.3,140.26,0.66384223]
[1768291751451,3.40541588,140.3,140.26,0.66384223]
[1768291751636,0.14976471,140.28,140.25,0.66384223]
[1768291752135,0.14976471,140.28,140.24,13.68384223]
[1768291752536,0.14976471,140.28,140.24,20.81440889]
[1768291752728,0.14976471,140.28,140.25,0.66384223]
[1768291753651,3.40491346,140.28,140.25,0.66384223]
[1768291754328,0.14976471,140.28,140.25,0.66384223]
[1768291755633,3.40491346,140.28,140.25,0.66384223]
[1768291756045,0.14976471,140.28,140.25,0.66384223]
[1768291756250,3.40491346,140.28,140.25,0.66384223]
[1768291756847,3.40645152,140.29,140.25,0.66384223]
[1768291758035,0.15130277,140.3,140.26,0.70233845]
[1768291758332,3.40645152,140.3,140.26,0.70233845]
[1768291759130,0.15130277,140.3,140.26,7.8318898]
[1768291759333,3.40645152,140.3,140.26,7.8318898]
[1768291759529,3.40645152,140.3,140.26,0.70233845]
[1768291760758,3.25514875,140.32,140.27,0.70233845]
[1768291761238,3.40645152,140.32,140.28,0.70233845]
[1768291761947,0.099,140.31,140.28,0.70233845]
[1768291763856,3.35414875,140.31,140.28,0.70233845]
[1768291767660,3.25514875,140.29,140.26,0.70233845]
[1768291767842,3.25514875,140.32,140.23,0.70233845]
[1768291767843,3.40541588,140.28,140.23,0.70233845]
[1768291768156,3.35517403,140.27,140.23,0.70233845]
[1768291768863,3.25514875,140.25,140.21,0.70233845]
[1768291770059,3.25514875,140.25,140.18,0.70233845]
[1768291770060,3.40442104,140.24,140.18,0.70233845]
[1768291770251,3.25514875,140.22,140.18,0.70233845]
[1768291770557,3.35615892,140.23,140.19,0.70233845]
[1768291770747,3.25514875,140.23,140.19,0.70233845]
[1768291773160,0.099,140.24,140.19,0.70233845]
[1768291773364,3.25514875,140.23,140.19,0.70233845]
[1768291774167,3.25514875,140.22,140.19,0.70233845]
[1768291774544,3.35466654,140.22,140.18,0.70233845]
[1768291774978,3.40541588,140.21,140.14,0.70816956]
[1768291775275,3.35517403,140.2,140.16,0.70816956]
[1768291776381,3.32517404,140.2,140.16,0.70816956]
[1768291779783,3.25514875,140.2,140.16,0.70816956]
[1768291781572,3.25514875,140.2,140.17,0.70816956]
[1768291781886,7.25290013,140.23,140.19,0.70816956]
[1768291782185,3.25514875,140.22,140.19,0.70816956]
[1768291784967,3.35414875,140.22,140.18,0.70816956]
[1768291785172,3.25514875,140.21,140.17,0.70816956]
[1768291785483,3.35414875,140.21,140.17,0.70816956]
[1768291788386,3.35414875,140.21,140.17,7.84232763]
[1768291789292,3.35414875,140.21,140.17,0.70816956]
[1768291790487,3.25514875,140.21,140.17,0.70816956]
[1768291790695,10.48638254,140.21,140.17,0.70816956]
[1768291790993,3.3762285,140.2,140.16,0.70816956]
[1768291791206,0.09922079,140.19,140.16,0.70816956]
[1768291791376,3.37645153,140.2,140.16,0.70816956]
[1768291793003,10.50920423,140.2,140.16,0.70816956]
[1768291799602,3.25514875,140.19,140.16,0.70816956]
[1768291799807,10.50920423,140.2,140.16,0.70816956]
[1768291800106,0.09922079,140.17,140.13,3.96331831]
[1768291800403,3.35436954,140.17,140.13,0.70816956]
[1768291800774,10.48869583,140.17,140.13,0.70816956]
[1768291802300,3.35436954,140.17,140.13,0.70816956]
[1768291802602,7.13387582,140.18,140.13,0.70816956]
[1768291802603,3.37645153,140.18,140.14,0.70816956]
[1768291802777,13.02,140.22,140.14,0.70816956]
[1768291802778,39.23839734,140.23,140.15,0.70816956]
[1768291802982,3.35414875,140.2,140.16,0.70816956]
[1768291805585,10.48718452,140.2,140.16,0.70816956]
[1768291806806,10.50861043,140.21,140.16,3.96331831]
[1768291807007,10.50861043,140.21,140.17,0.66080058]
[1768291808194,3.3762285,140.19,140.15,0.66080058]
[1768291808913,10.5094707,140.19,140.15,0.66080058]
[1768291812420,3.35436954,140.18,140.15,0.66080058]
[1768291813316,2.18607204,140.18,140.15,0.66080058]
[1768291814222,2.18585125,140.18,140.15,0.66080058]
[1768291817119,9.319632,140.18,140.15,0.66080058]
[1768291817621,9.220632,140.18,140.15,0.66080058]
[1768291820025,0.099,140.17,140.14,0.65901555]
[1768291820325,9.34193478,140.18,140.14,0.65901555]
[1768291820907,9.220632,140.18,140.14,0.65901555]
[1768291821318,9.34143597,140.19,140.15,0.65901555]
[1768291826630,0.099,140.18,140.15,0.65901555]
[1768291826928,9.22013319,140.19,140.15,0.65901555]
[1768291827127,9.22087855,140.18,140.15,0.65901555]
[1768291827427,9.31987855,140.18,140.15,0.65901555]
[1768291829432,0.12107975,140.17,140.14,0.65901555]
[1768291829619,2.207931,140.17,140.14,0.65901555]
[1768291830929,7.2553148,140.17,140.14,0.65901555]
[1768291831825,9.34216605,140.17,140.13,0.65901555]
[1768291832332,0.09922079,140.16,140.13,0.65901555]
[1768291832532,9.34238908,140.17,140.13,0.65901555]
[1768291834719,0.12107975,140.15,140.11,13.67905774]
[1768291834914,2.17793101,140.15,140.11,13.67905774]
[1768291835113,2.17793101,140.15,140.12,0.65905774]
[1768291835835,2.08685125,140.15,140.11,13.02]
[1768291836015,2.08685125,140.15,140.11,13.67905774]
[1768291836423,2.05685126,140.15,140.11,13.67905774]
[1768291836829,2.14815405,140.15,140.11,13.67905774]
[1768291837135,2.08685125,140.14,140.11,0.65905774]
[1768291837328,2.17815404,140.14,140.11,0.65905774]
[1768291838141,0.09130279,140.14,140.11,0.65905774]
[1768291840943,9.3135037,140.15,140.11,0.65905774]
[1768291842441,7.13534966,140.15,140.11,0.65905774]
[1768291842741,2.17815404,140.17,140.13,0.65905774]
[1768291844242,0.09130279,140.17,140.13,0.65905774]
[1768291844422,2.17815404,140.17,140.13,0.65905774]
[1768291847643,2.08685125,140.16,140.13,0.65905774]
[1768291849039,7.13368526,140.18,140.14,0.65905774]
[1768291849232,2.08685125,140.19,140.15,0.65905774]
[1768291849926,2.08685125,140.2,140.16,0.65905774]
[1768291852647,2.08685125,140.19,140.16,0.65905774]
[1768291857849,2.08685125,140.18,140.16,0.65905774]
[1768291860251,2.08685125,140.19,140.16,0.65905774]
[1768291861650,2.08685125,140.19,140.17,0.65905774]
[1768291869557,0.09130279,140.21,140.17,0.65905774]
[1768291869855,2.08685125,140.19,140.17,0.65905774]
[1768291870357,0.09130279,140.21,140.17,0.65905774]
[1768291870556,2.08685125,140.19,140.17,0.65905774]
[1768291875360,3.25982907,140.19,140.17,0.65905774]
[1768291877365,0.09130279,140.2,140.17,0.65905774]
[1768291877665,3.25982907,140.19,140.17,0.65905774]
[1768291886170,3.25982907,140.18,140.16,0.71775173]
[1768291886465,0.09130279,140.16,140.12,0.71775173]
[1768291886657,3.25982907,140.15,140.12,0.71775173]
[1768291888944,3.25982907,140.15,140.12,7.85437778]
[1768291889145,3.25982907,140.15,140.13,0.71775173]
[1768291895668,0.09130279,140.16,140.13,0.71775173]
[1768291895865,3.25982907,140.15,140.13,0.71775173]
[1768291897751,3.25982907,140.14,140.13,0.71775173]
[1768291897951,3.25982907,140.14,140.12,7.79831434]
[1768291898474,3.25982907,140.14,140.12,0.66168829]
[1768291899072,0.09130279,140.15,140.12,0.66168829]
[1768291899378,3.25982907,140.14,140.12,0.66168829]
[1768291900080,3.25982907,140.15,140.12,0.66168829]
[1768291902475,3.25982907,140.13,140.11,0.66168829]
[1768291902672,0.09130279,140.14,140.11,0.66168829]
[1768291902977,3.25982907,140.12,140.11,0.66168829]
[1768291903150,3.25982907,140.13,140.11,0.66168829]
[1768291904381,3.35113186,140.14,140.11,0.66168829]
[1768291904682,0.09130279,140.13,140.1,7.79934106]
[1768291904978,3.35113186,140.14,140.11,0.66168829]
[1768291908789,3.25982907,140.13,140.11,0.66168829]
[1768291911179,7.13489676,140.16,140.11,7.13701144]
[1768291911385,3.25982907,140.15,140.12,0.66168829]
[1768291911683,3.35113186,140.16,140.12,0.66168829]
[1768291911885,0.09130279,140.16,140.12,0.66168829]
[1768291912087,3.25982907,140.16,140.12,0.66168829]
[1768291912786,3.25982907,140.16,140.13,0.66168829]
[1768291913093,3.35113186,140.16,140.13,0.66168829]
[1768291913386,3.25982907,140.15,140.13,0.66168829]
[1768291914668,3.25982907,140.14,140.13,0.66168829]
[1768291917182,3.25982907,140.14,140.12,0.66168829]
[1768291919792,3.25982907,140.14,140.11,0.66168829]
[1768291919991,3.25982907,140.14,140.1,0.66168829]
[1768291919992,3.25982907,140.12,140.1,0.66168829]
[1768291920877,3.25982907,140.11,140.09,13.88168829]
[1768291924174,3.25982907,140.11,140.09,0.86168829]
[1768291924375,3.25982907,140.11,140.09,7.9999475]
[1768291924584,3.35113186,140.12,140.09,7.9999475]
[1768291924796,0.09130279,140.12,140.09,7.9999475]
[1768291925099,3.35113186,140.12,140.09,7.9999475]
[1768291925398,3.35113186,140.12,140.1,0.69608938]
[1768291925399,3.25982907,140.12,140.1,0.69608938]
[1768291925593,3.25982907,140.13,140.1,0.69608938]
[1768291926395,3.25982907,140.12,140.1,0.69608938]
[1768291927598,3.25982907,140.12,140.09,8.03434859]
[1768291929503,3.25982907,140.11,140.1,0.69608938]
[1768291930300,3.35113186,140.11,140.08,0.2]
[1768291930598,3.25982907,140.1,140.08,0.2]
[1768291931400,3.22982908,140.1,140.08,0.89608938]
[1768291931602,3.25982907,140.09,140.08,0.89608938]
[1768291931901,3.22982908,140.09,140.08,0.89608938]
[1768291932279,3.22982908,140.09,140.08,0.2]
[1768291932484,3.22982908,140.09,140.07,0.69608938]
[1768291932679,3.22982908,140.09,140.06,20.15968885]
[1768291932879,3.25982907,140.08,140.06,13.71608938]
[1768291933079,3.22982907,140.08,140.06,13.71608938]
[1768291934997,3.25982907,140.08,140.06,0.69608938]
[1768291935384,3.25982907,140.09,140.06,0.69608938]
[1768291937285,2.08941806,140.09,140.06,0.69608938]
[1768291941793,2.18072085,140.1,140.06,0.69608938]
[1768291943111,2.08941806,140.09,140.06,0.69608938]
[1768291947007,2.08941806,140.08,140.06,0.69608938]
[1768291947410,2.08941806,140.07,140.05,0.86924953]
[1768291948711,2.05941807,140.07,140.06,0.66924953]
[1768291950418,7.22962175,140.09,140.06,0.66924953]
[1768291950419,2.08941806,140.08,140.06,0.66924953]
[1768291952120,2.18072085,140.08,140.05,0.86924953]
[1768291952417,2.08941806,140.08,140.05,0.86924953]
[1768291952798,2.08941806,140.08,140.06,0.66924953]
[1768291959922,0.09130279,140.09,140.06,0.66924953]
[1768291960122,2.08941806,140.07,140.06,0.66924953]
[1768291960629,2.08941806,140.07,140.05,0.86482014]
[1768291961317,2.08941806,140.07,140.06,0.66482014]
[1768291965831,2.08941806,140.07,140.05,0.86482014]
[1768291966335,2.18072085,140.08,140.05,0.86482014]
[1768291967030,0.09130279,140.08,140.05,8.00501642]
[1768291967208,2.18072085,140.09,140.06,0.66482014]
[1768291967715,0.09130279,140.09,140.06,0.66482014]
[1768291967935,2.18072085,140.09,140.06,0.66482014]
[1768291969330,17.8411653,140.13,140.06,0.66482014]
[1768291969331,2.08941806,140.13,140.07,0.66482014]
[1768291969629,2.08941806,140.14,140.09,2.08941806]
[1768291969832,2.08941806,140.14,140.1,0.66482014]
[1768291972335,7.13529789,140.15,140.11,0.66482014]
[1768291972638,2.08941806,140.14,140.11,0.66482014]
[1768291973234,7.13529789,140.15,140.11,0.66482014]
[1768291973530,2.08941806,140.13,140.11,0.66482014]
[1768291974216,2.08941806,140.13,140.1,0.66482014]
[1768291974540,2.08941806,140.12,140.09,0.66482014]
[1768291974920,7.13644573,140.13,140.09,0.66482014]
[1768291974921,2.08941806,140.11,140.09,0.66482014]
[1768291975743,24.97406382,140.15,140.09,0.66482014]
[1768291975926,2.08941806,140.11,140.09,0.66482014]
[1768291978926,7.13534288,140.15,140.1,0.66482014]
[1768291979228,2.08941806,140.15,140.11,0.66482014]
[1768291980542,2.08941806,140.15,140.11,7.80197416]
[1768291980848,2.08941806,140.15,140.12,0.66482014]
[1768291981035,2.08941806,140.15,140.12,0.60482014]
[1768291982621,0.06,140.16,140.12,0.60482014]
[1768291982826,2.14941806,140.16,140.12,7.13670796]
[1768291983023,2.14941806,140.16,140.13,0.66482014]
[1768291983555,2.14941806,140.16,140.13,0.60482014]
[1768291984340,0.06,140.16,140.13,0.60482014]
[1768291984745,2.08941806,140.15,140.13,0.60482014]
[1768291989956,2.08941806,140.15,140.13,0.54482014]
[1768291990540,2.08941806,140.15,140.11,20.15724357]
[1768291990863,2.08941806,140.14,140.11,20.15724357]
[1768291992047,2.08941806,140.14,140.12,0.68423377]
[1768291993062,0.18,140.15,140.12,0.68423377]
[1768291993370,2.08941806,140.15,140.12,0.68423377]
[1768291994964,2.18841806,140.15,140.12,0.68423377]
[1768291995159,2.08941806,140.15,140.13,0.71929922]
[1768291995364,2.08941806,140.16,140.13,0.71929922]
[1768291997041,2.08941806,140.15,140.13,0.71929922]
[1768291997240,2.08941806,140.15,140.11,7.85636041]
[1768291997241,2.08941806,140.14,140.11,7.85636041]
[1768291997466,2.08941806,140.13,140.12,13.02]
[1768291998357,2.08941806,140.13,140.12,13.73929922]
[1768291999056,2.08941806,140.14,140.12,13.73929922]
[1768291999362,3.26232065,140.14,140.12,13.73929922]
[1768292000762,3.26232065,140.14,140.12,0.71929922]
[1768292003468,0.18,140.15,140.12,0.71929922]
[1768292003469,3.26232065,140.15,140.12,0.71929922]
[1768292006059,3.36132065,140.16,140.12,0.71929922]
[1768292006570,3.36132065,140.16,140.12,7.85603169]
[1768292006760,3.36132065,140.16,140.13,0.71929922]
[1768292012476,3.36132065,140.16,140.13,7.85542215]
[1768292012655,0.18,140.23,140.16,0.71929922]
[1768292012858,1e-08,140.25,140.22,3.26232065]
[1768292013168,1e-08,140.27,140.26,0.71929922]
[1768292013361,0.1,140.3,140.27,0.71929922]
[1768292013672,3.36232065,140.33,140.28,3.98161987]
[1768292013872,0.1,140.33,140.28,0.71929922]
[1768292014178,10.48845707,140.33,140.28,3.98161987]
[1768292014480,3.26232065,140.32,140.28,0.71929922]
[1768292015066,3.92461523,140.32,140.28,0.71929922]
[1768292015753,3.92461523,140.32,140.28,3.98161987]
[1768292016871,3.92461523,140.32,140.28,0.71929922]
[1768292017076,0.66229458,140.31,140.28,0.71929922]
[1768292017277,3.26232065,140.32,140.25,9.50344495]
[1768292017278,0.66229458,140.29,140.26,13.02]
[1768292017469,3.92461523,140.28,140.25,2.37382023]
[1768292018980,3.92461523,140.28,140.24,13.68459359]
[1768292021360,0.66229458,140.31,140.27,3.26232065]
[1768292021563,10.38897502,140.32,140.28,0.66459359]
[1768292021880,0.66229458,140.31,140.27,0.66459359]
[1768292022083,3.92461523,140.31,140.27,0.66459359]
[1768292024161,0.66229458,140.3,140.27,0.66459359]
[1768292024384,0.66229458,140.3,140.26,0.66459359]
[1768292024767,0.66229458,140.28,140.25,0.66459359]
[1768292025065,3.92461523,140.3,140.26,7.79412441]
[1768292025267,0.66229458,140.3,140.26,11.05644506]
[1768292025669,3.92461523,140.3,140.26,7.79412441]
[1768292027990,0.66229458,140.3,140.26,7.79412441]
[1768292028781,10.1790598,140.31,140.26,7.79412441]
[1768292030703,3.92461523,140.3,140.26,7.79412441]
[1768292031084,7.78886242,140.32,140.27,0.66459359]
[1768292031388,0.66229458,140.31,140.27,13.68459359]
[1768292031586,0.1,140.33,140.31,0.66459359]
[1768292031783,0.1,140.35,140.33,0.66459359]
[1768292031982,0.1,140.36,140.34,16.94691424]
[1768292032184,0.1,140.36,140.34,13.02]
[1768292032500,0.76229458,140.36,140.34,13.02]
[1768292032891,0.76229458,140.36,140.32,7.79112527]
[1768292033086,0.76229458,140.36,140.33,13.02]
[1768292033692,0.1,140.36,140.33,13.68459359]
[1768292034702,11.14915571,140.36,140.32,0.66459359]
[1768292034907,0.66229458,140.35,140.32,13.68459359]
[1768292037293,0.66229458,140.35,140.32,13.02]
[1768292038703,10.29424651,140.36,140.32,13.02]
[1768292038898,10.29424651,140.36,140.32,13.68459359]
[1768292039508,7.03192586,140.36,140.33,0.66459359]
[1768292039905,3.26232065,140.37,140.33,0.66459359]
[1768292040883,0.66229458,140.37,140.33,0.66459359]
[1768292041487,3.92461523,140.37,140.33,0.66459359]
[1768292042604,11.04874208,140.37,140.33,0.66459359]
[1768292042810,0.484049,140.36,140.33,0.66459359]
[1768292043214,3.26232065,140.35,140.32,13.68459359]
[1768292043694,0.40971768,140.35,140.32,13.68459359]
[1768292044015,1.07022981,140.35,140.32,13.68459359]
[1768292044712,3.46617356,140.35,140.32,13.68459359]
[1768292046216,3.26232065,140.35,140.32,13.68459359]
[1768292053814,0.099,140.34,140.31,13.02]
[1768292054317,0.099,140.34,140.31,13.69978309]
[1768292054822,3.8568944,140.35,140.31,13.69978309]
[1768292055922,3.26232065,140.34,140.32,0.67978309]
[1768292056506,0.59457375,140.35,140.32,0.67978309]
[1768292056902,3.26232065,140.34,140.32,0.67978309]
[1768292058922,3.8568944,140.35,140.32,0.67978309]
[1768292059111,3.26232065,140.35,140.32,0.67978309]
[1768292059315,9.80059394,140.36,140.32,0.67978309]
[1768292060719,0.59457375,140.36,140.32,0.67978309]
[1768292060925,2.67590706,140.36,140.32,0.67978309]
[1768292061730,0.59457375,140.36,140.32,0.67978309]
[1768292061921,2.67590706,140.36,140.32,0.67978309]
[1768292063029,9.89953591,140.38,140.33,0.67978309]
[1768292063230,7.8182026,140.38,140.34,0.67978309]
[1768292063410,9.89953591,140.38,140.34,0.67978309]
[1768292064231,2.08133331,140.37,140.34,0.67978309]
[1768292066625,2.08133331,140.36,140.34,0.67978309]
[1768292066815,2.08133331,140.35,140.33,0.67978309]
[1768292067022,0.58961801,140.36,140.33,0.67978309]
[1768292067328,2.67095132,140.36,140.33,0.67978309]
[1768292067537,0.58961801,140.36,140.33,0.67978309]
[1768292067708,2.67590706,140.37,140.33,0.67978309]
[1768292068442,0.6815709,140.44,140.39,0.67978309]
[1768292068608,24.46807708,140.45,140.43,2.08133331]
[1768292068609,17.34791915,140.45,140.43,2.08133331]
[1768292068815,17.32237874,140.45,140.43,15.08133331]
[1768292069240,0.6815709,140.44,140.4,13.0]
[1768292070728,0.6815709,140.44,140.4,13.67978309]
[1768292070937,0.6815709,140.44,140.4,20.80223373]
[1768292071340,0.6815709,140.44,140.4,22.88356704]
[1768292071755,9.88345592,140.44,140.4,0.67978309]
[1768292072050,9.88345592,140.44,140.39,13.67978309]
[1768292072051,0.6815709,140.42,140.39,13.67978309]
[1768292072842,2.76290421,140.42,140.38,4.39655112]
[1768292073442,0.5,140.41,140.38,4.39655112]
[1768292074637,2.76290421,140.4,140.36,0.72175357]
[1768292074840,2.77586337,140.39,140.36,0.72175357]
[1768292075044,2.77586337,140.39,140.35,7.84632146]
[1768292076738,2.77586337,140.37,140.34,0.72175357]
[1768292077623,2.08133331,140.38,140.34,7.8472996]
[1768292078143,2.08133331,140.38,140.34,0.72175357]
[1768292078833,7.81768114,140.39,140.34,0.72175357]
[1768292079039,2.08133331,140.38,140.34,0.72175357]
[1768292080144,7.81768114,140.39,140.34,0.72175357]
[1768292080337,2.08133331,140.38,140.34,0.72175357]
[1768292081528,2.08133331,140.38,140.34,7.84702955]
[1768292083829,0.69453006,140.41,140.38,0.72175357]
[1768292084034,7.12110295,140.43,140.39,0.72175357]
[1768292084035,0.69453006,140.43,140.39,0.72175357]
[1768292084534,2.77586337,140.43,140.39,0.72175357]
[1768292084935,2.08133331,140.42,140.39,0.72175357]
[1768292085135,2.77586337,140.42,140.39,0.72175357]
[1768292085941,2.77586337,140.42,140.39,7.84460056]
[1768292086134,0.69453006,140.42,140.39,7.84460056]
[1768292086534,2.77586337,140.41,140.38,20.12336599]
[1768292086847,0.69453006,140.41,140.38,20.12336599]
[1768292088238,0.5,140.4,140.38,20.84511956]
[1768292088755,1.19453006,140.4,140.38,13.0]
[1768292089049,1.19453006,140.4,140.37,13.72175357]
[1768292090454,1.19453006,140.4,140.37,20.84573848]
[1768292091134,1.19453006,140.4,140.37,13.72175357]
[1768292093977,0.69453006,140.39,140.36,7.84612836]
[1768292096159,2.58133331,140.4,140.36,7.84612836]
[1768292096342,3.27586337,140.4,140.36,7.84612836]
[1768292097351,1.19453006,140.4,140.36,9.92746167]
[1768292098164,1.19453006,140.4,140.36,7.84612836]
[1768292098345,1.19453006,140.4,140.36,9.92746167]
[1768292099262,1.19453006,140.4,140.37,0.72175357]
[1768292100042,3.27586337,140.4,140.37,0.72175357]
[1768292100259,3.27586337,140.4,140.36,7.84612836]
[1768292100568,0.69453006,140.36,140.29,0.72175357]
[1768292100774,2.08133331,140.34,140.31,0.72175357]
[1768292101070,2.08133331,140.36,140.29,0.72175357]
[1768292101071,2.08133331,140.32,140.29,0.72175357]
[1768292101377,2.77586337,140.33,140.29,7.84945289]
[1768292101681,0.69453006,140.33,140.29,7.84945289]
[1768292103057,2.77586337,140.33,140.29,7.84945289]
[1768292104280,2.77586337,140.33,140.3,7.84929164]
[1768292104449,2.08133331,140.35,140.32,0.72175357]
[1768292104973,2.78281287,140.35,140.32,0.72175357]
[1768292105168,2.78281287,140.34,140.31,0.71541235]
[1768292105553,2.78281287,140.34,140.3,7.84295042]
[1768292105872,2.78281287,140.34,140.31,0.71541235]
[1768292106361,0.70147956,140.35,140.32,0.71541235]
[1768292106570,2.08133331,140.36,140.32,0.71541235]
[1768292106571,2.78281287,140.36,140.32,0.71541235]
[1768292107070,0.70147956,140.35,140.32,0.71541235]
[1768292107246,2.78281287,140.35,140.32,0.71541235]
[1768292108187,2.78281287,140.35,140.31,20.8423054]
[1768292108350,0.70147956,140.33,140.31,13.0]
[1768292109452,0.70147956,140.33,140.31,20.12693583]
[1768292110169,2.78281287,140.35,140.31,20.84234818]
[1768292110367,2.08133331,140.35,140.31,22.92368149]
[1768292110668,0.70147956,140.35,140.32,0.71541235]
[1768292110869,0.70147956,140.36,140.33,0.71541235]
[1768292111667,2.78281287,140.36,140.33,0.71541235]
[1768292111972,2.78281287,140.36,140.32,0.71541235]
[1768292112180,0.70147956,140.35,140.32,0.71541235]
[1768292112357,0.70147956,140.35,140.32,7.12655169]
[1768292112878,7.12407371,140.37,140.32,9.92329735]
[1768292112879,0.70147956,140.37,140.32,9.92329735]
[1768292113067,0.70147956,140.39,140.35,2.79674566]
[1768292113263,0.70147956,140.39,140.35,15.79674566]
[1768292113578,0.70147956,140.38,140.35,13.71541235]
[1768292114280,2.79798229,140.39,140.35,13.71541235]
[1768292114574,2.79798229,140.37,140.34,0.72361382]
[1768292114780,0.71664898,140.36,140.33,13.0]
[1768292115281,2.79798229,140.37,140.33,20.84957538]
[1768292115682,0.71664898,140.37,140.33,22.93090869]
[1768292116085,0.5,140.36,140.33,22.93090869]
[1768292118592,0.5,140.36,140.35,0.72361382]
[1768292119386,0.5,140.36,140.34,3.97454213]
[1768292119770,0.5,140.36,140.33,23.37688987]
[1768292119984,3.96757729,140.37,140.33,24.10050369]
[1768292120868,0.71664898,140.36,140.32,3.97454213]
[1768292121064,0.71664898,140.36,140.32,11.10107427]
[1768292121677,1.21664898,140.36,140.32,11.10107427]
[1768292121878,1.21664898,140.36,140.33,0.72361382]
[1768292122506,0.5,140.36,140.34,0.72361382]
[1768292123392,1.21664898,140.36,140.33,0.72361382]
[1768292124400,1.21664898,140.36,140.32,11.10094572]
[1768292127596,1.21664898,140.36,140.33,0.72361382]
[1768292128599,0.5,140.36,140.34,0.72361382]
[1768292129096,0.71664898,140.37,140.34,0.72361382]
[1768292129296,11.09071758,140.39,140.35,0.72361382]
[1768292129498,3.96757729,140.39,140.35,0.72361382]
[1768292129876,3.96757729,140.39,140.35,3.97454213]
[1768292130090,24.09022841,140.4,140.36,0.72361382]
[1768292130290,11.09022841,140.4,140.36,0.72361382]
[1768292130690,0.71664898,140.41,140.37,0.72361382]
[1768292130888,13.71664898,140.43,140.39,0.72361382]
[1768292131204,0.71664898,140.43,140.39,3.97454213]
[1768292131880,0.71664898,140.43,140.39,11.09749919]
[1768292132401,0.71664898,140.43,140.39,9.51617751]
[1768292133088,0.61664898,140.42,140.38,10.37428516]
[1768292133881,0.61664898,140.42,140.38,7.12335685]
[1768292134094,0.61664898,140.42,140.38,10.37428516]
[1768292134597,10.9886426,140.43,140.39,0.72361382]
[1768292135702,3.34992831,140.42,140.37,24.0851304]
[1768292135890,3.25092831,140.41,140.37,7.83420209]
[1768292136088,3.25092831,140.41,140.37,0.71021664]
[1768292136595,3.34992831,140.42,140.37,3.96114495]
[1768292136906,0.099,140.42,140.38,0.71021664]
[1768292137102,3.34992831,140.42,140.38,0.71021664]
[1768292138395,3.25092831,140.41,140.38,0.71021664]
[1768292138814,3.25092831,140.4,140.37,0.71021664]
[1768292139042,3.25092831,140.4,140.36,20.12438597]
[1768292139043,3.25092831,140.4,140.36,13.0]
[1768292139308,3.25092831,140.38,140.35,0.71021664]
[1768292140186,3.35505303,140.4,140.35,0.71021664]
[1768292140187,3.25092831,140.39,140.35,0.71021664]
[1768292141221,3.25092831,140.38,140.35,0.71021664]
[1768292144200,3.25092831,140.39,140.35,0.71021664]
[1768292144611,10.37396059,140.39,140.35,0.71021664]
[1768292146042,0.60142649,140.37,140.33,0.71021664]
[1768292146219,3.25092831,140.35,140.33,0.71021664]
[1768292146555,3.25092831,140.36,140.33,0.71021664]
[1768292148327,3.36499857,140.36,140.33,0.71021664]
[1768292148527,3.36499857,140.36,140.31,3.25092831]
[1768292148528,3.36982339,140.34,140.31,0.71021664]
[1768292148710,3.25092831,140.34,140.31,0.71021664]
[1768292149312,3.25092831,140.36,140.32,0.71021664]
[1768292149610,3.25092831,140.36,140.33,0.71021664]
[1768292152423,3.25092831,140.35,140.32,0.71021664]
[1768292154121,3.25092831,140.36,140.33,0.71021664]
[1768292155825,3.25092831,140.37,140.34,0.71021664]
[1768292156031,105.95092831,140.39,140.35,0.71021664]
[1768292157543,3.25092831,140.39,140.35,0.71021664]
[1768292157939,7.73929711,140.4,140.36,0.71021664]
[1768292157940,10.37357644,140.4,140.36,0.71021664]
[1768292158137,3.25092831,140.4,140.36,0.71021664]
[1768292158639,10.37355903,140.4,140.36,0.71021664]
[1768292158940,3.25092831,140.37,140.35,0.71021664]
[1768292159128,0.61664898,140.39,140.35,0.71021664]
[1768292159326,3.86757729,140.39,140.35,0.71021664]
[1768292160346,3.25092831,140.38,140.35,0.71021664]
[1768292160745,0.61664898,140.42,140.38,0.71021664]
[1768292160928,17.32237874,140.45,140.41,3.96114495]
[1768292161124,17.32237874,140.45,140.42,3.90114497]
[1768292161327,17.32237874,140.45,140.42,3.25092831]
[1768292163065,17.32237874,140.45,140.42,3.96114495]
[1768292163553,17.32237874,140.45,140.42,11.08261781]
[1768292163728,16.59737874,140.45,140.44,3.96114495]
[1768292164628,15.87237874,140.45,140.44,3.25092831]
[1768292165439,15.87237874,140.45,140.43,3.97179835]
[1768292165948,15.87237874,140.45,140.44,3.25092831]
[1768292168843,0.77347253,140.47,140.44,3.25092831]
[1768292169042,0.77347253,140.47,140.45,3.25092831]
[1768292169655,102.7,140.48,140.46,3.25092831]
[1768292169959,0.77347253,140.49,140.47,3.25092831]
[1768292170254,0.77347253,140.49,140.46,3.25092831]
[1768292171961,0.77347253,140.49,140.45,11.09166695]
[1768292172365,0.1,140.49,140.46,0.72087004]
[1768292172572,0.1,140.49,140.46,3.97179835]